[Event "Titled Tuesday Blitz February 14 Early 2023"]
[White "Boyer, Mahel"]
[Black "Le, Tuan Minh"]
[WhiteFideId "45102422"]
[BlackFideId "12401153"]
[WhiteElo "2489"]
[BlackElo "2542"]
[Result "1/2-1/2"]
[Round "02"]
[TimeControl "180+2"]
[Date "2023.02.15"]
[WhiteClock "0:00:02"]
[BlackClock "0:00:04"]

1. d4 {[%clk 0:02:56]}  d5 {[%clk 0:02:56]} 2. c4 {[%clk 0:02:56]}  c6 {[%clk 0:02:56]} 3. cxd5 {[%clk 0:02:56]}  cxd5 {[%clk 0:02:56]} 4. Bf4 {[%clk 0:02:57]}  Nf6 {[%clk 0:02:56]} 5. Nc3 {[%clk 0:02:57]}  a6 {[%clk 0:02:57]} 6. e3 {[%clk 0:02:57]}  Nc6 {[%clk 0:02:57]} 7. Be2 {[%clk 0:02:58]}  Bf5 {[%clk 0:02:57]} 8. g4 {[%clk 0:02:59]}  Bg6 {[%clk 0:02:50]} 9. h4 {[%clk 0:02:58]}  h6 {[%clk 0:02:49]} 10. Nf3 {[%clk 0:02:56]}  e6 {[%clk 0:02:40]} 11. h5 {[%clk 0:02:52]}  Be4 {[%clk 0:02:29]} 12. Qb3 {[%clk 0:02:28]}  Bxf3 {[%clk 0:01:47]} 13. Bxf3 {[%clk 0:02:26]}  Na5 {[%clk 0:01:47]} 14. Qc2 {[%clk 0:01:53]}  Rc8 {[%clk 0:01:45]} 15. Rc1 {[%clk 0:01:29]}  Bd6 {[%clk 0:01:26]} 16. g5 {[%clk 0:01:23]}  hxg5 {[%clk 0:01:20]} 17. Bxg5 {[%clk 0:01:24]}  Nc4 {[%clk 0:01:12]} 18. Kf1 {[%clk 0:00:54]}  Be7 {[%clk 0:01:06]} 19. Kg2 {[%clk 0:00:45]}  b5 {[%clk 0:00:50]} 20. Qe2 {[%clk 0:00:37]}  Qd7 {[%clk 0:00:45]} 21. Nb1 {[%clk 0:00:23]}  Ne4 {[%clk 0:00:41]} 22. Bf4 {[%clk 0:00:18]}  Bd6 {[%clk 0:00:35]} 23. Bxe4 {[%clk 0:00:19]}  dxe4 {[%clk 0:00:35]} 24. Qg4 {[%clk 0:00:18]}  Bxf4 {[%clk 0:00:13]} 25. Qxf4 {[%clk 0:00:19]}  f6 {[%clk 0:00:10]} 26. b3 {[%clk 0:00:18]}  Nb6 {[%clk 0:00:09]} 27. Qxe4 {[%clk 0:00:17]}  Nd5 {[%clk 0:00:07]} 28. Qg6+ {[%clk 0:00:16]}  Kf8 {[%clk 0:00:08]} 29. Nd2 {[%clk 0:00:14]}  Rh6 {[%clk 0:00:06]} 30. Qg3 {[%clk 0:00:12]}  Rxc1 {[%clk 0:00:06]} 31. Rxc1 {[%clk 0:00:12]}  Rxh5 {[%clk 0:00:07]} 32. Ne4 {[%clk 0:00:11]}  Qb7 {[%clk 0:00:05]} 33. Qd6+ {[%clk 0:00:10]}  Kf7 {[%clk 0:00:05]} 34. Qc6 {[%clk 0:00:10]}  Qe7 {[%clk 0:00:04]} 35. Nd6+ {[%clk 0:00:08]}  Kg6 {[%clk 0:00:05]} 36. Qe8+ {[%clk 0:00:06]}  Qxe8 {[%clk 0:00:06]} 37. Nxe8 {[%clk 0:00:06]}  e5 {[%clk 0:00:05]} 38. Rc6 {[%clk 0:00:05]}  exd4 {[%clk 0:00:05]} 39. exd4 {[%clk 0:00:05]}  Rh4 {[%clk 0:00:04]} 40. Rxa6 {[%clk 0:00:04]}  Rxd4 {[%clk 0:00:04]} 41. Rd6 {[%clk 0:00:04]}  Rd3 {[%clk 0:00:05]} 42. Kf1 {[%clk 0:00:03]}  Kf5 {[%clk 0:00:04]} 43. Nxg7+ {[%clk 0:00:03]}  Ke5 {[%clk 0:00:05]} 44. Re6+ {[%clk 0:00:03]}  Kd4 {[%clk 0:00:05]} 45. Nf5+ {[%clk 0:00:04]}  Kc3 {[%clk 0:00:05]} 46. Ne3 {[%clk 0:00:04]}  Nb4 {[%clk 0:00:02]} 47. Rxf6 {[%clk 0:00:03]}  Nxa2 {[%clk 0:00:03]} 48. Rb6 {[%clk 0:00:04]}  b4 {[%clk 0:00:03]} 49. Nc4 {[%clk 0:00:02]}  Kxb3 {[%clk 0:00:03]} 50. Na5+ {[%clk 0:00:03]}  Kc3 {[%clk 0:00:02]} 51. Nc6 {[%clk 0:00:04]}  Rd6 {[%clk 0:00:02]} 52. Nxb4 {[%clk 0:00:04]}  Rxb6 {[%clk 0:00:02]} 53. Nd5+ {[%clk 0:00:04]}  Kd4 {[%clk 0:00:01]} 54. Nxb6 {[%clk 0:00:05]}  Nc3 {[%clk 0:00:02]} 55. Nd7 {[%clk 0:00:05]}  Ne4 {[%clk 0:00:02]} 56. f4 {[%clk 0:00:04]}  Nc3 {[%clk 0:00:02]} 57. Kg2 {[%clk 0:00:04]}  Nd5 {[%clk 0:00:03]} 58. f5 {[%clk 0:00:03]}  Ke4 {[%clk 0:00:03]} 59. f6 {[%clk 0:00:02]}  Nxf6 {[%clk 0:00:04]} 1/2-1/2


[Site "https://www.chess.com"]

[Event "Titled Tuesday Blitz February 14 Early 2023"]
[White "Sammed Jaykumar, Shete"]
[Black "Fedoseev, Vladimir"]
[WhiteFideId "5073421"]
[BlackFideId "24130737"]
[WhiteElo "2440"]
[BlackElo "2680"]
[Result "1/2-1/2"]
[Round "02"]
[TimeControl "180+2"]
[Date "2023.02.15"]
[WhiteClock "0:00:13"]
[BlackClock "0:00:13"]

1. Nf3 {[%clk 0:03:00]}  Nf6 {[%clk 0:02:52]} 2. c4 {[%clk 0:03:00]}  e6 {[%clk 0:02:47]} 3. g3 {[%clk 0:02:58]}  d5 {[%clk 0:02:47]} 4. Qc2 {[%clk 0:02:55]}  Nc6 {[%clk 0:02:39]} 5. Bg2 {[%clk 0:02:50]}  d4 {[%clk 0:02:35]} 6. d3 {[%clk 0:02:45]}  h6 {[%clk 0:02:34]} 7. O-O {[%clk 0:02:41]}  e5 {[%clk 0:02:34]} 8. a3 {[%clk 0:02:38]}  a5 {[%clk 0:02:32]} 9. e3 {[%clk 0:02:39]}  Bc5 {[%clk 0:02:27]} 10. exd4 {[%clk 0:02:36]}  Nxd4 {[%clk 0:02:16]} 11. Nxd4 {[%clk 0:02:36]}  Bxd4 {[%clk 0:02:17]} 12. Be3 {[%clk 0:02:28]}  O-O {[%clk 0:02:16]} 13. Nc3 {[%clk 0:02:27]}  Bf5 {[%clk 0:02:12]} 14. Rad1 {[%clk 0:02:16]}  c6 {[%clk 0:02:07]} 15. Ne2 {[%clk 0:02:00]}  Bxe3 {[%clk 0:02:06]} 16. fxe3 {[%clk 0:02:01]}  Ng4 {[%clk 0:02:05]} 17. Qc1 {[%clk 0:01:53]}  Qg5 {[%clk 0:02:02]} 18. Rf3 {[%clk 0:01:44]}  Bxd3 {[%clk 0:02:02]} 19. h4 {[%clk 0:01:20]}  Qe7 {[%clk 0:01:59]} 20. Nc3 {[%clk 0:01:04]}  Bxc4 {[%clk 0:01:52]} 21. Bh3 {[%clk 0:01:04]}  Be6 {[%clk 0:01:39]} 22. e4 {[%clk 0:00:55]}  Nf2 {[%clk 0:01:31]} 23. Rxf2 {[%clk 0:00:39]}  Bxh3 {[%clk 0:01:31]} 24. Qe3 {[%clk 0:00:39]}  Bg4 {[%clk 0:01:31]} 25. Rdf1 {[%clk 0:00:39]}  f6 {[%clk 0:01:22]} 26. Qb6 {[%clk 0:00:37]}  Ra6 {[%clk 0:01:18]} 27. Qb3+ {[%clk 0:00:36]}  Be6 {[%clk 0:01:19]} 28. Qc2 {[%clk 0:00:36]}  Raa8 {[%clk 0:01:17]} 29. Na4 {[%clk 0:00:36]}  Rad8 {[%clk 0:01:16]} 30. Nc5 {[%clk 0:00:37]}  Bc8 {[%clk 0:01:16]} 31. b4 {[%clk 0:00:33]}  axb4 {[%clk 0:01:15]} 32. axb4 {[%clk 0:00:34]}  b6 {[%clk 0:01:15]} 33. Nd3 {[%clk 0:00:29]}  Rd6 {[%clk 0:01:09]} 34. Nb2 {[%clk 0:00:23]}  Be6 {[%clk 0:01:07]} 35. Na4 {[%clk 0:00:21]}  Qb7 {[%clk 0:01:02]} 36. g4 {[%clk 0:00:17]}  Bxg4 {[%clk 0:01:00]} 37. h5 {[%clk 0:00:16]}  Bxh5 {[%clk 0:01:00]} 38. Rg2 {[%clk 0:00:16]}  Rfd8 {[%clk 0:00:58]} 39. Qc3 {[%clk 0:00:16]}  Qa7 {[%clk 0:00:56]} 40. Qh3 {[%clk 0:00:13]}  Be8 {[%clk 0:00:50]} 41. Qxh6 {[%clk 0:00:13]}  Rd1 {[%clk 0:00:32]} 42. Qxf6 {[%clk 0:00:10]}  Rxf1+ {[%clk 0:00:31]} 43. Kxf1 {[%clk 0:00:11]}  Qf7 {[%clk 0:00:21]} 44. Qxf7+ {[%clk 0:00:11]}  Bxf7 {[%clk 0:00:21]} 45. Nxb6 {[%clk 0:00:11]}  Rd1+ {[%clk 0:00:21]} 46. Ke2 {[%clk 0:00:10]}  Rd4 {[%clk 0:00:22]} 47. Ke3 {[%clk 0:00:10]}  Rxb4 {[%clk 0:00:22]} 48. Nd7 {[%clk 0:00:10]}  Rb3+ {[%clk 0:00:21]} 49. Kf2 {[%clk 0:00:11]}  Rb5 {[%clk 0:00:18]} 50. Rg5 {[%clk 0:00:10]}  Be6 {[%clk 0:00:17]} 51. Nxe5 {[%clk 0:00:10]}  Rc5 {[%clk 0:00:12]} 52. Ke3 {[%clk 0:00:10]}  Rc1 {[%clk 0:00:12]} 53. Rg6 {[%clk 0:00:09]}  Bb3 {[%clk 0:00:09]} 54. Rxc6 {[%clk 0:00:08]}  Rxc6 {[%clk 0:00:09]} 55. Nxc6 {[%clk 0:00:09]}  Kf7 {[%clk 0:00:09]} 56. Kf4 {[%clk 0:00:08]}  Kf6 {[%clk 0:00:09]} 57. e5+ {[%clk 0:00:08]}  Kg6 {[%clk 0:00:09]} 58. Ne7+ {[%clk 0:00:08]}  Kf7 {[%clk 0:00:09]} 59. Nf5 {[%clk 0:00:08]}  Be6 {[%clk 0:00:10]} 60. Nxg7 {[%clk 0:00:09]}  Kxg7 {[%clk 0:00:10]} 61. Kg5 {[%clk 0:00:09]}  Kf7 {[%clk 0:00:10]} 62. Kh5 {[%clk 0:00:10]}  Ke7 {[%clk 0:00:11]} 63. Kg5 {[%clk 0:00:11]}  Bd5 {[%clk 0:00:12]} 64. Kg6 {[%clk 0:00:12]}  Ke6 {[%clk 0:00:13]} 65. Kg5 {[%clk 0:00:13]}  Kxe5 {[%clk 0:00:13]} 1/2-1/2


[Site "https://www.chess.com"]

[Event "Titled Tuesday Blitz February 14 Early 2023"]
[White "Pranav, V"]
[Black "Morefield, Jason"]
[WhiteFideId "25060783"]
[BlackFideId "30920825"]
[WhiteElo "2597"]
[BlackElo "2167"]
[Result "1-0"]
[Round "02"]
[TimeControl "180+2"]
[Date "2023.02.15"]
[WhiteClock "0:00:12"]
[BlackClock "0:00:02"]

1. e4 {[%clk 0:03:00]}  c5 {[%clk 0:02:58]} 2. Nf3 {[%clk 0:03:01]}  d6 {[%clk 0:02:59]} 3. d4 {[%clk 0:02:59]}  cxd4 {[%clk 0:03:00]} 4. Nxd4 {[%clk 0:02:59]}  Nf6 {[%clk 0:03:00]} 5. Nc3 {[%clk 0:03:00]}  Nc6 {[%clk 0:03:01]} 6. Bc4 {[%clk 0:02:58]}  Qb6 {[%clk 0:03:00]} 7. Nb3 {[%clk 0:02:57]}  e6 {[%clk 0:03:00]} 8. O-O {[%clk 0:02:56]}  a6 {[%clk 0:03:00]} 9. a4 {[%clk 0:02:55]}  Be7 {[%clk 0:02:59]} 10. Be3 {[%clk 0:02:55]}  Qc7 {[%clk 0:02:57]} 11. f4 {[%clk 0:02:55]}  O-O {[%clk 0:02:56]} 12. Bd3 {[%clk 0:02:53]}  b6 {[%clk 0:02:42]} 13. Kh1 {[%clk 0:02:53]}  Bb7 {[%clk 0:02:42]} 14. Qe1 {[%clk 0:02:50]}  Nb4 {[%clk 0:02:27]} 15. a5 {[%clk 0:02:42]}  bxa5 {[%clk 0:02:22]} 16. Nxa5 {[%clk 0:02:41]}  d5 {[%clk 0:01:59]} 17. Nxb7 {[%clk 0:02:31]}  Qxb7 {[%clk 0:01:59]} 18. e5 {[%clk 0:02:31]}  Ne4 {[%clk 0:01:58]} 19. Bxe4 {[%clk 0:02:19]}  dxe4 {[%clk 0:01:58]} 20. Qe2 {[%clk 0:02:20]}  Rfc8 {[%clk 0:01:31]} 21. f5 {[%clk 0:02:13]}  exf5 {[%clk 0:01:29]} 22. Rxf5 {[%clk 0:02:14]}  Nd5 {[%clk 0:01:08]} 23. Raf1 {[%clk 0:01:16]}  Nxc3 {[%clk 0:00:52]} 24. bxc3 {[%clk 0:01:17]}  Rf8 {[%clk 0:00:50]} 25. Bd4 {[%clk 0:01:16]}  a5 {[%clk 0:00:40]} 26. Qg4 {[%clk 0:01:14]}  a4 {[%clk 0:00:31]} 27. e6 {[%clk 0:00:38]}  f6 {[%clk 0:00:31]} 28. Rh5 {[%clk 0:00:31]}  Qa6 {[%clk 0:00:12]} 29. Rg1 {[%clk 0:00:25]}  Qc4 {[%clk 0:00:08]} 30. Qh3 {[%clk 0:00:18]}  h6 {[%clk 0:00:07]} 31. Qg4 {[%clk 0:00:14]}  Ra6 {[%clk 0:00:04]} 32. Rxh6 {[%clk 0:00:12]}  Qxe6 {[%clk 0:00:04]} 33. Qg6 {[%clk 0:00:12]}  f5 {[%clk 0:00:02]} 34. Qxg7# {[%clk 0:00:12]} 1-0


[Site "https://www.chess.com"]

[Event "Titled Tuesday Blitz February 14 Early 2023"]
[White "Stoleriu, George"]
[Black "Hakobyan, Aram"]
[WhiteFideId "1227505"]
[BlackFideId "13306677"]
[WhiteElo "2390"]
[BlackElo "2608"]
[Result "0-1"]
[Round "02"]
[TimeControl "180+2"]
[Date "2023.02.15"]
[WhiteClock "0:00:03"]
[BlackClock "0:00:21"]

1. e4 {[%clk 0:03:00]}  c5 {[%clk 0:02:59]} 2. b3 {[%clk 0:02:58]}  e6 {[%clk 0:02:59]} 3. Bb2 {[%clk 0:02:54]}  a6 {[%clk 0:02:59]} 4. f4 {[%clk 0:02:46]}  Nc6 {[%clk 0:02:58]} 5. Nf3 {[%clk 0:02:44]}  d5 {[%clk 0:02:58]} 6. e5 {[%clk 0:02:40]}  Nh6 {[%clk 0:02:56]} 7. Be2 {[%clk 0:02:34]}  Be7 {[%clk 0:02:56]} 8. O-O {[%clk 0:02:28]}  O-O {[%clk 0:02:56]} 9. d4 {[%clk 0:02:25]}  Nf5 {[%clk 0:02:55]} 10. Qd2 {[%clk 0:02:13]}  cxd4 {[%clk 0:02:45]} 11. Nxd4 {[%clk 0:02:08]}  Bb4 {[%clk 0:02:20]} 12. Qd3 {[%clk 0:01:54]}  Ncxd4 {[%clk 0:02:11]} 13. Bxd4 {[%clk 0:01:53]}  Bd7 {[%clk 0:02:11]} 14. c3 {[%clk 0:01:30]}  Rc8 {[%clk 0:02:11]} 15. a4 {[%clk 0:01:12]}  Bc5 {[%clk 0:02:03]} 16. Bxc5 {[%clk 0:01:01]}  Rxc5 {[%clk 0:02:04]} 17. Nd2 {[%clk 0:01:00]}  Qb6 {[%clk 0:02:01]} 18. Kh1 {[%clk 0:00:58]}  Rfc8 {[%clk 0:02:01]} 19. Rfc1 {[%clk 0:00:48]}  R5c7 {[%clk 0:01:54]} 20. Bg4 {[%clk 0:00:33]}  Ne7 {[%clk 0:01:30]} 21. b4 {[%clk 0:00:22]}  Qf2 {[%clk 0:01:12]} 22. Rf1 {[%clk 0:00:20]}  Qh4 {[%clk 0:01:10]} 23. Qe2 {[%clk 0:00:15]}  Rxc3 {[%clk 0:01:10]} 24. b5 {[%clk 0:00:13]}  axb5 {[%clk 0:00:59]} 25. axb5 {[%clk 0:00:14]}  Rc2 {[%clk 0:00:59]} 26. Rad1 {[%clk 0:00:12]}  Bxb5 {[%clk 0:00:59]} 27. Qxb5 {[%clk 0:00:11]}  Qxg4 {[%clk 0:00:59]} 28. Qxb7 {[%clk 0:00:12]}  Nf5 {[%clk 0:00:57]} 29. Qb6 {[%clk 0:00:10]}  h6 {[%clk 0:00:53]} 30. Rfe1 {[%clk 0:00:07]}  d4 {[%clk 0:00:48]} 31. Qb7 {[%clk 0:00:04]}  R8c6 {[%clk 0:00:46]} 32. Qa8+ {[%clk 0:00:03]}  Kh7 {[%clk 0:00:46]} 33. Qa3 {[%clk 0:00:03]}  R2c3 {[%clk 0:00:40]} 34. Qa4 {[%clk 0:00:02]}  Ne3 {[%clk 0:00:40]} 35. Rg1 {[%clk 0:00:02]}  Nxd1 {[%clk 0:00:38]} 36. Qxd4 {[%clk 0:00:02]}  Qe2 {[%clk 0:00:26]} 37. Ne4 {[%clk 0:00:02]}  R3c4 {[%clk 0:00:21]} 38. Qxd1 {[%clk 0:00:02]}  Qxd1 {[%clk 0:00:21]} 39. Nf6+ {[%clk 0:00:03]}  gxf6 {[%clk 0:00:21]} 0-1


[Site "https://www.chess.com"]

[Event "Titled Tuesday Blitz February 14 Early 2023"]
[White "Daneshvar, Bardiya"]
[Black "Skliarov, Viktor"]
[WhiteFideId "12576468"]
[BlackFideId "14106736"]
[WhiteElo "2540"]
[BlackElo "2383"]
[Result "1-0"]
[Round "02"]
[TimeControl "180+2"]
[Date "2023.02.15"]
[WhiteClock "0:00:27"]
[BlackClock "0:00:02"]

1. b3 {[%clk 0:03:00]}  e5 {[%clk 0:02:58]} 2. Bb2 {[%clk 0:03:01]}  Nc6 {[%clk 0:02:58]} 3. e3 {[%clk 0:03:01]}  Nf6 {[%clk 0:02:58]} 4. Bb5 {[%clk 0:03:01]}  Bd6 {[%clk 0:02:58]} 5. Na3 {[%clk 0:03:01]}  a6 {[%clk 0:02:56]} 6. Bxc6 {[%clk 0:03:01]}  dxc6 {[%clk 0:02:56]} 7. Nc4 {[%clk 0:03:02]}  Qe7 {[%clk 0:02:55]} 8. a4 {[%clk 0:03:02]}  O-O {[%clk 0:02:55]} 9. a5 {[%clk 0:03:02]}  e4 {[%clk 0:02:49]} 10. Ne2 {[%clk 0:03:01]}  Bg4 {[%clk 0:02:47]} 11. h3 {[%clk 0:03:01]}  Bh5 {[%clk 0:02:47]} 12. g4 {[%clk 0:02:52]}  Bg6 {[%clk 0:02:40]} 13. Nf4 {[%clk 0:02:52]}  Rad8 {[%clk 0:02:10]} 14. Nxd6 {[%clk 0:02:43]}  cxd6 {[%clk 0:01:44]} 15. h4 {[%clk 0:02:40]}  h6 {[%clk 0:01:30]} 16. Qe2 {[%clk 0:02:24]}  Nd5 {[%clk 0:01:08]} 17. Nxd5 {[%clk 0:02:16]}  cxd5 {[%clk 0:01:09]} 18. O-O-O {[%clk 0:02:08]}  Rc8 {[%clk 0:01:06]} 19. Bc3 {[%clk 0:02:03]}  Rc7 {[%clk 0:00:51]} 20. Kb2 {[%clk 0:02:01]}  Rfc8 {[%clk 0:00:51]} 21. Rc1 {[%clk 0:02:01]}  Rc6 {[%clk 0:00:35]} 22. Bd4 {[%clk 0:01:55]}  Qc7 {[%clk 0:00:30]} 23. c3 {[%clk 0:01:55]}  Qxa5 {[%clk 0:00:30]} 24. h5 {[%clk 0:01:56]}  Bh7 {[%clk 0:00:29]} 25. g5 {[%clk 0:01:55]}  hxg5 {[%clk 0:00:25]} 26. Qg4 {[%clk 0:01:53]}  Qd8 {[%clk 0:00:23]} 27. h6 {[%clk 0:01:48]}  f5 {[%clk 0:00:18]} 28. Qg3 {[%clk 0:01:40]}  g6 {[%clk 0:00:18]} 29. Ra1 {[%clk 0:01:41]}  Kf7 {[%clk 0:00:14]} 30. Ra4 {[%clk 0:01:38]}  Ke6 {[%clk 0:00:13]} 31. Rha1 {[%clk 0:01:37]}  g4 {[%clk 0:00:12]} 32. Ra5 {[%clk 0:01:32]}  Qg5 {[%clk 0:00:12]} 33. Bg7 {[%clk 0:01:29]}  Qd8 {[%clk 0:00:10]} 34. Qg1 {[%clk 0:01:25]}  Rc5 {[%clk 0:00:09]} 35. b4 {[%clk 0:01:21]}  Rc4 {[%clk 0:00:08]} 36. Qf1 {[%clk 0:01:15]}  Qb6 {[%clk 0:00:08]} 37. R5a3 {[%clk 0:01:06]}  Qd8 {[%clk 0:00:04]} 38. Rd1 {[%clk 0:01:02]}  Qb6 {[%clk 0:00:04]} 39. d3 {[%clk 0:00:58]}  exd3 {[%clk 0:00:03]} 40. Qxd3 {[%clk 0:00:59]}  Qc6 {[%clk 0:00:03]} 41. Ra5 {[%clk 0:00:55]}  d4 {[%clk 0:00:03]} 42. exd4 {[%clk 0:00:52]}  Qe4 {[%clk 0:00:03]} 43. Qd2 {[%clk 0:00:48]}  Kd7 {[%clk 0:00:03]} 44. Re1 {[%clk 0:00:44]}  Qf3 {[%clk 0:00:03]} 45. d5 {[%clk 0:00:45]}  Re4 {[%clk 0:00:02]} 46. Raa1 {[%clk 0:00:42]}  g5 {[%clk 0:00:02]} 47. Rxe4 {[%clk 0:00:39]}  Qxe4 {[%clk 0:00:02]} 48. Re1 {[%clk 0:00:38]}  Qf4 {[%clk 0:00:02]} 49. Qe2 {[%clk 0:00:36]}  Kc7 {[%clk 0:00:03]} 50. Bd4 {[%clk 0:00:32]}  Kb8 {[%clk 0:00:03]} 51. Rd1 {[%clk 0:00:30]}  Qf3 {[%clk 0:00:02]} 52. Qxf3 {[%clk 0:00:31]}  gxf3 {[%clk 0:00:03]} 53. Re1 {[%clk 0:00:31]}  b5 {[%clk 0:00:01]} 54. Re6 {[%clk 0:00:28]}  Rd8 {[%clk 0:00:02]} 55. Re7 {[%clk 0:00:28]}  Bg6 {[%clk 0:00:02]} 56. Rg7 {[%clk 0:00:27]} 1-0


[Site "https://www.chess.com"]

[Event "Titled Tuesday Blitz February 14 Early 2023"]
[White "Piesik, Piotr"]
[Black "Bortnyk, Olexandr"]
[WhiteFideId "1136194"]
[BlackFideId "14120828"]
[WhiteElo "2426"]
[BlackElo "2605"]
[Result "0-1"]
[Round "02"]
[TimeControl "180+2"]
[Date "2023.02.15"]
[WhiteClock "0:00:19"]
[BlackClock "0:00:33"]

1. Nf3 {[%clk 0:03:00]}  Nf6 {[%clk 0:02:58]} 2. g3 {[%clk 0:03:01]}  g6 {[%clk 0:02:57]} 3. Bg2 {[%clk 0:03:02]}  Bg7 {[%clk 0:02:58]} 4. O-O {[%clk 0:03:02]}  O-O {[%clk 0:02:59]} 5. d4 {[%clk 0:03:02]}  d6 {[%clk 0:02:59]} 6. Nbd2 {[%clk 0:03:02]}  Nc6 {[%clk 0:02:56]} 7. e4 {[%clk 0:03:02]}  e5 {[%clk 0:02:56]} 8. dxe5 {[%clk 0:03:03]}  dxe5 {[%clk 0:02:53]} 9. c3 {[%clk 0:03:03]}  Qe7 {[%clk 0:02:49]} 10. b4 {[%clk 0:03:02]}  a6 {[%clk 0:02:48]} 11. a4 {[%clk 0:03:01]}  Rd8 {[%clk 0:02:48]} 12. Qe2 {[%clk 0:03:01]}  Be6 {[%clk 0:02:44]} 13. Ba3 {[%clk 0:02:57]}  Qd7 {[%clk 0:02:38]} 14. Nc4 {[%clk 0:02:53]}  Qd3 {[%clk 0:02:22]} 15. Qxd3 {[%clk 0:02:53]}  Rxd3 {[%clk 0:02:23]} 16. Ncxe5 {[%clk 0:02:50]}  Nxe5 {[%clk 0:02:07]} 17. Nxe5 {[%clk 0:02:51]}  Rxc3 {[%clk 0:02:08]} 18. Rfc1 {[%clk 0:02:43]}  Nxe4 {[%clk 0:02:02]} 19. Bxe4 {[%clk 0:02:41]}  Bxe5 {[%clk 0:02:02]} 20. Rxc3 {[%clk 0:02:41]}  Bxc3 {[%clk 0:02:01]} 21. Rc1 {[%clk 0:02:41]}  Be5 {[%clk 0:01:59]} 22. Bxb7 {[%clk 0:02:39]}  Ra7 {[%clk 0:02:00]} 23. Bc6 {[%clk 0:02:35]}  h5 {[%clk 0:01:57]} 24. a5 {[%clk 0:02:27]}  Bc8 {[%clk 0:01:40]} 25. Re1 {[%clk 0:02:22]}  f6 {[%clk 0:01:40]} 26. Bc1 {[%clk 0:02:15]}  Bb7 {[%clk 0:01:38]} 27. Be3 {[%clk 0:02:14]}  Bxc6 {[%clk 0:01:39]} 28. Bxa7 {[%clk 0:02:14]}  Kf7 {[%clk 0:01:39]} 29. Bc5 {[%clk 0:02:10]}  g5 {[%clk 0:01:39]} 30. Rd1 {[%clk 0:02:00]}  h4 {[%clk 0:01:19]} 31. gxh4 {[%clk 0:01:54]}  gxh4 {[%clk 0:01:20]} 32. h3 {[%clk 0:01:53]}  Ke8 {[%clk 0:01:08]} 33. Bd4 {[%clk 0:01:44]}  Bd6 {[%clk 0:01:07]} 34. Bxf6 {[%clk 0:01:40]}  Bxb4 {[%clk 0:01:07]} 35. Ra1 {[%clk 0:01:29]}  Bd7 {[%clk 0:01:02]} 36. Bxh4 {[%clk 0:01:18]}  Bxh3 {[%clk 0:01:00]} 37. Ra4 {[%clk 0:01:12]}  c5 {[%clk 0:00:59]} 38. Ra2 {[%clk 0:01:02]}  Kd7 {[%clk 0:00:57]} 39. Kh2 {[%clk 0:00:42]}  Be6 {[%clk 0:00:56]} 40. Rc2 {[%clk 0:00:40]}  c4 {[%clk 0:00:52]} 41. Bf6 {[%clk 0:00:35]}  Bxa5 {[%clk 0:00:52]} 42. Bc3 {[%clk 0:00:34]}  Bc7+ {[%clk 0:00:50]} 43. Kg2 {[%clk 0:00:33]}  Kc6 {[%clk 0:00:47]} 44. Kf3 {[%clk 0:00:30]}  a5 {[%clk 0:00:43]} 45. Ke3 {[%clk 0:00:27]}  Bb6+ {[%clk 0:00:37]} 46. Bd4 {[%clk 0:00:26]}  Bd8 {[%clk 0:00:36]} 47. f4 {[%clk 0:00:24]}  a4 {[%clk 0:00:34]} 48. Ra2 {[%clk 0:00:20]}  Kb5 {[%clk 0:00:34]} 49. Rb2+ {[%clk 0:00:20]}  Kc6 {[%clk 0:00:34]} 50. Rb6+ {[%clk 0:00:19]}  Bxb6 {[%clk 0:00:33]} 0-1


[Site "https://www.chess.com"]

[Event "Titled Tuesday Blitz February 14 Early 2023"]
[White "Katz, Alexander"]
[Black "Narayanan.S.L"]
[WhiteFideId "2039796"]
[BlackFideId "5058422"]
[WhiteElo "2470"]
[BlackElo "2660"]
[Result "0-1"]
[Round "02"]
[TimeControl "180+2"]
[Date "2023.02.15"]
[WhiteClock "0:00:24"]
[BlackClock "0:02:09"]

1. e4 {[%clk 0:03:00]}  e6 {[%clk 0:02:49]} 2. d4 {[%clk 0:03:00]}  d5 {[%clk 0:02:50]} 3. Nd2 {[%clk 0:03:01]}  c5 {[%clk 0:02:49]} 4. exd5 {[%clk 0:03:00]}  Qxd5 {[%clk 0:02:49]} 5. Ngf3 {[%clk 0:03:00]}  cxd4 {[%clk 0:02:49]} 6. Bc4 {[%clk 0:03:00]}  Qd8 {[%clk 0:02:49]} 7. O-O {[%clk 0:03:00]}  Nc6 {[%clk 0:02:50]} 8. Nb3 {[%clk 0:02:58]}  Nf6 {[%clk 0:02:48]} 9. Nbxd4 {[%clk 0:02:58]}  Nxd4 {[%clk 0:02:48]} 10. Nxd4 {[%clk 0:02:59]}  a6 {[%clk 0:02:49]} 11. Re1 {[%clk 0:02:54]}  Be7 {[%clk 0:02:44]} 12. c3 {[%clk 0:02:48]}  O-O {[%clk 0:02:44]} 13. Qf3 {[%clk 0:02:46]}  Qc7 {[%clk 0:02:36]} 14. Bb3 {[%clk 0:02:43]}  Bd7 {[%clk 0:02:36]} 15. Bf4 {[%clk 0:02:40]}  Qb6 {[%clk 0:02:30]} 16. Be5 {[%clk 0:02:36]}  Bc6 {[%clk 0:02:29]} 17. Nxc6 {[%clk 0:02:15]}  bxc6 {[%clk 0:02:28]} 18. Rad1 {[%clk 0:02:13]}  Rfd8 {[%clk 0:02:27]} 19. Rxd8+ {[%clk 0:02:07]}  Rxd8 {[%clk 0:02:27]} 20. Rd1 {[%clk 0:02:08]}  c5 {[%clk 0:02:17]} 21. g3 {[%clk 0:01:59]}  Rxd1+ {[%clk 0:02:12]} 22. Qxd1 {[%clk 0:01:56]}  h6 {[%clk 0:02:12]} 23. Qd3 {[%clk 0:01:49]}  Qc6 {[%clk 0:02:10]} 24. Bc4 {[%clk 0:01:45]}  Nd7 {[%clk 0:02:08]} 25. Bf4 {[%clk 0:01:39]}  g5 {[%clk 0:02:08]} 26. Bc1 {[%clk 0:00:24]}  Ne5 {[%clk 0:02:08]} 27. Qf1 {[%clk 0:00:24]}  Nf3+ {[%clk 0:02:07]} 28. Kh1 {[%clk 0:00:24]}  Nd2+ {[%clk 0:02:08]} 29. Qg2 {[%clk 0:00:23]}  Qxg2+ {[%clk 0:02:08]} 30. Kxg2 {[%clk 0:00:24]}  Nxc4 {[%clk 0:02:08]} 31. b3 {[%clk 0:00:23]}  Nb6 {[%clk 0:02:09]} 32. c4 {[%clk 0:00:24]}  f5 {[%clk 0:02:09]} 33. Kf3 {[%clk 0:00:24]}  Kf7 {[%clk 0:02:09]} 0-1


[Site "https://www.chess.com"]